bitfinex-derivatives/quotes_ETHF0:USTF0_20210110
["timestamp","ask_amount","ask_price","bid_price","bid_amount"]
[1610321102158,53.1053,1270.6,1269.6,4.00959]
[1610321102561,53.1053,1270.6,1269.6,6.47939]
[1610321103663,4.00959,1270.0,1269.8,4.00959]
[1610321104862,4.00959,1270.0,1269.6,2.4698]
[1610321105664,4.00959,1270.0,1269.9,4.00959]
[1610321106665,53.1053,1270.6,1269.9,4.00959]
[1610321107066,53.1053,1270.6,1269.9,6.35869]
[1610321107467,1.5132,1270.7,1269.9,6.35869]
[1610321107667,4.00959,1270.4,1270.2,4.00959]
[1610321107866,4.00959,1270.4,1269.9,2.3491]
[1610321108066,34.00959,1270.4,1269.9,2.3491]
[1610321108265,34.00959,1270.4,1269.6,2.4698]
[1610321108467,36.12179,1270.4,1269.6,2.4698]
[1610321108667,36.12179,1270.4,1269.4,44.3579]
[1610321109668,4.00959,1269.5,1269.4,44.3579]
[1610321110370,2.1122,1270.4,1269.4,44.3579]
[1610321110768,2.1122,1270.4,1269.4,46.564]
[1610321111469,32.1122,1270.4,1269.4,46.564]
[1610321111669,4.00959,1269.6,1269.5,4.00959]
[1610321112069,4.00959,1269.6,1269.4,46.564]
[1610321112669,32.1122,1270.4,1269.4,46.564]
[1610321113770,2.1122,1270.4,1269.5,4.00959]
[1610321113970,30.0,1270.7,1269.5,4.00959]
[1610321114370,30.0,1270.7,1269.4,46.564]
[1610321114769,30.0,1270.5,1269.4,46.564]
[1610321115170,2.139,1270.5,1269.4,46.564]
[1610321115674,4.00959,1269.5,1269.4,50.57359]
[1610321115871,4.00959,1269.5,1269.4,46.564]
[1610321116874,4.00959,1269.5,1269.4,2.2061]
[1610321117074,4.00959,1269.5,1269.0,1.67]
[1610321117276,4.00959,1269.5,1267.8,2.4542]
[1610321117474,4.00959,1269.5,1267.5,5.5806]
[1610321117475,4.00959,1269.5,1267.3,30.0]
[1610321117675,4.00959,1269.1,1269.0,4.00959]
[1610321118876,4.00959,1269.1,1269.0,5.21759958]
[1610321119277,5.5839,1270.1,1269.0,5.21759958]
[1610321119477,2.3348,1270.2,1269.0,7.64779958]
[1610321119677,4.00959,1269.7,1269.6,4.00959]
[1610321119877,2.139,1270.5,1269.6,4.00959]
[1610321120479,2.4202,1270.8,1269.6,4.00959]
[1610321120878,5.5935,1271.1,1269.6,4.00959]
[1610321121678,4.00959,1269.7,1269.6,4.00959]
[1610321122079,1.8198,1270.7,1269.6,4.00959]
[1610321122880,5.59316146,1270.6,1269.6,4.00959]
[1610321123682,5.59316146,1270.6,1270.1,4.00959]
[1610321124281,5.59316146,1270.6,1269.5,1.9337]
[1610321124781,5.59316146,1270.6,1269.5,51.423]
[1610321124983,35.59316146,1270.6,1269.5,51.423]
[1610321125684,4.00959,1269.6,1269.5,51.423]
[1610321126284,4.00959,1269.6,1269.5,1.9337]
[1610321126485,4.00959,1269.6,1269.0,6.43979]
[1610321127786,4.00959,1269.1,1269.0,6.43979]
[1610321128487,2.2219,1269.9,1269.0,6.43979]
[1610321128688,2.2219,1269.9,1269.0,7.64762819]
[1610321129090,60.8558,1270.2,1269.0,7.64762819]
[1610321129788,60.8558,1270.2,1269.7,4.00959]
[1610321130589,60.8558,1270.2,1269.7,5.70889]
[1610321131892,60.8558,1270.2,1270.1,4.00959]
[1610321133994,60.8558,1270.2,1269.7,1.6993]
[1610321135493,60.8558,1270.2,1269.3,2.177]
[1610321135694,4.00959,1270.5,1269.4,46.4763]
[1610321135894,4.00959,1270.3,1270.1,4.00959]
[1610321137095,4.00959,1270.3,1269.5,1.20725229]
[1610321137799,1.8198,1270.7,1270.0,4.00959]
[1610321138201,66.8615,1271.0,1270.0,4.00959]
[1610321139902,66.8615,1271.0,1270.7,4.00959]
[1610321140102,66.8615,1271.0,1270.7,6.23979]
[1610321140302,66.8615,1271.0,1270.7,2.2302]
[1610321141905,4.00959,1270.9,1270.7,6.23979]
[1610321145508,2.3787,1271.7,1270.7,6.23979]
[1610321145809,4.00959,1271.5,1271.3,4.00959]
[1610321148010,61.941,1272.0,1271.3,4.00959]
[1610321149010,59.7765,1272.0,1271.3,4.00959]
[1610321149913,59.7765,1272.0,1271.9,4.00959]
[1610321152614,59.7765,1272.0,1271.2,2.4534]
[1610321153212,59.7765,1272.0,1270.7,2.2302]
[1610321153612,59.7765,1272.0,1270.4,50.4946]
[1610321153813,59.7765,1272.0,1271.7,4.00959]
[1610321154013,59.7765,1272.0,1270.4,50.4946]
[1610321154414,1.804,1272.3,1269.9,1.8293]
[1610321154614,5.7201,1272.9,1270.7,59.3068]
[1610321154817,5.7201,1272.9,1270.7,60.9112]
[1610321155916,5.7201,1272.9,1272.1,4.00959]
[1610321157716,61.8428,1273.4,1272.1,4.00959]
[1610321157915,61.8428,1273.4,1272.4,4.00959]
[1610321159118,5.59652173,1273.3,1272.4,4.00959]
[1610321159419,7.70012173,1273.3,1272.4,4.00959]
[1610321159819,4.00959,1272.5,1272.4,4.00959]
[1610321160018,6.24259,1272.5,1272.4,4.00959]
[1610321160419,6.24259,1272.5,1271.4,2.5005]
[1610321161622,6.24259,1272.5,1270.7,60.9112]
[1610321161822,4.00959,1271.4,1271.3,4.00959]
[1610321162422,4.00959,1271.4,1270.7,60.9112]
[1610321163324,4.00959,1271.4,1270.8,1.20608216]
[1610321164026,4.00959,1271.4,1271.2,4.00959]
[1610321164223,4.00959,1271.4,1271.2,5.57469]
[1610321164723,50.9507,1272.5,1271.2,5.57469]
[1610321165329,50.9507,1272.5,1271.2,1.5651]
[1610321166030,4.00959,1271.4,1271.2,1.5651]
[1610321168037,4.00959,1271.4,1271.2,5.57469]
[1610321168436,1.5867,1272.2,1271.2,5.57469]
[1610321170040,4.00959,1272.1,1271.6,4.00959]
[1610321171239,4.00959,1272.1,1271.3,1.20575393]
[1610321171838,4.00959,1272.1,1271.2,1.5651]
[1610321172039,4.00959,1271.8,1271.7,4.00959]
[1610321172338,4.00959,1271.8,1270.7,47.6847]
[1610321173042,4.00959,1271.8,1270.8,1.20573911]
[1610321173940,4.00959,1270.9,1270.8,1.20573911]
[1610321176140,4.00959,1270.9,1270.7,1.6044]
[1610321176341,4.00959,1270.9,1269.9,1.9703]
[1610321176541,4.00959,1270.9,1269.0,10.216]
[1610321177544,4.00959,1270.9,1269.7,1.20652879]
[1610321177944,4.00959,1270.9,1270.8,4.00959]
[1610321178542,4.00959,1270.9,1270.4,2.4908]
[1610321179342,1.6053,1271.6,1270.4,2.4908]
[1610321179546,2.1835,1271.9,1270.4,2.4908]
[1610321179742,1.5867,1272.2,1270.4,2.4908]
[1610321179942,30.0,1273.6,1271.5,4.00959]
[1610321180144,30.0,1272.5,1271.5,4.00959]
[1610321180342,30.0,1272.5,1271.0,2.4269]
[1610321180543,31.5524,1272.5,1271.0,2.4269]
[1610321182143,4.00959,1271.1,1270.5,4.00959]
[1610321182745,4.00959,1271.1,1270.4,2.4908]
[1610321182946,34.00959,1271.1,1270.4,2.4908]
[1610321183146,34.00959,1271.1,1269.7,2.2344]
[1610321183348,4.00959,1271.1,1269.1,3.405]
[1610321184146,4.00959,1270.7,1270.6,4.00959]
[1610321185151,2.212,1271.4,1270.6,4.00959]
[1610321185750,47.6809,1271.7,1270.6,4.00959]
[1610321185953,47.6809,1271.7,1270.5,2.392]
[1610321185954,47.6809,1271.7,1270.7,1.20628577]
[1610321186150,4.00959,1271.3,1270.7,1.20628577]
[1610321187252,4.00959,1271.3,1270.6,1.20627603]
[1610321187752,34.00959,1271.3,1270.6,1.20627603]
[1610321188053,4.00959,1270.7,1270.6,1.20627603]
[1610321189357,47.6809,1271.7,1270.6,1.20627603]
[1610321189558,77.6809,1271.7,1270.6,1.20627603]
[1610321190158,4.00959,1270.7,1270.6,1.20627603]
[1610321191759,4.00959,1270.7,1270.0,48.7036]
[1610321191959,4.00959,1270.7,1269.7,45.0698]
[1610321192160,4.00959,1270.7,1269.0,3.405]
[1610321192161,4.00959,1270.7,1270.6,4.00959]
[1610321192760,35.6134,1273.6,1270.6,4.00959]
[1610321193162,35.6134,1273.6,1270.6,5.21582963]
[1610321194061,35.6134,1273.6,1271.1,4.00959]
[1610321194463,30.0,1273.4,1271.1,4.00959]
[1610321195665,30.0,1273.4,1271.0,2.1888]
[1610321195864,5.59696233,1273.3,1271.2,1.20613505]
[1610321196068,4.00959,1271.3,1271.2,1.20613505]
[1610321197467,4.00959,1271.3,1270.6,1.20642546]
[1610321198066,4.00959,1270.7,1270.6,1.20642546]
[1610321198368,5.59759,1270.7,1270.6,1.20642546]
[1610321199169,4.00959,1270.7,1270.6,1.20642546]
[1610321199969,4.00959,1270.7,1270.3,1.20659259]
[1610321200168,4.00959,1270.7,1270.3,5.21618259]
[1610321200569,5.58629,1270.7,1270.3,5.21618259]
[1610321200968,1.5767,1270.7,1270.3,5.21618259]
[1610321201371,1.5767,1270.7,1270.4,1.20641068]
[1610321202170,1.5767,1270.7,1270.6,4.00959]
[1610321202370,1.5767,1270.7,1270.6,6.23559]
[1610321202771,1.5767,1270.7,1270.6,7.44178119]
[1610321203570,2.4216,1271.7,1270.6,7.44178119]
[1610321203974,60.1498,1272.1,1270.6,7.44178119]
[1610321204174,4.00959,1271.7,1271.4,4.00959]
[1610321204873,4.00959,1271.7,1270.6,3.43219119]
[1610321205675,4.00959,1271.7,1271.5,1.20599833]
[1610321205676,34.00959,1271.7,1271.5,1.20599833]
[1610321206675,30.0,1271.6,1271.5,1.20599833]
[1610321206875,32.157,1271.6,1271.5,1.20599833]
[1610321207274,32.157,1271.6,1270.6,2.226]
[1610321207275,32.157,1271.6,1270.7,1.20625729]
[1610321208075,4.00959,1270.8,1270.7,1.20625729]
[1610321208575,4.00959,1270.8,1270.3,52.292]
[1610321208576,4.00959,1270.8,1270.4,1.20644693]
[1610321210083,1.7851,1271.3,1270.4,1.20644693]
[1610321210084,4.00959,1270.5,1270.4,1.20644693]
[1610321210783,34.00959,1270.5,1270.4,1.20644693]
[1610321211784,34.00959,1270.5,1268.6,1.20708402]
[1610321211985,4.00959,1270.5,1268.6,1.20708402]
[1610321212185,1.8372,1270.7,1269.6,4.00959]
[1610321212586,1.8372,1270.7,1269.4,1.5834]
[1610321213486,1.8372,1270.7,1268.6,1.20708402]
[1610321213686,1.8372,1270.7,1269.5,1.20720125]
[1610321214087,4.00959,1269.6,1269.5,1.20720125]
[1610321215087,4.00959,1269.6,1269.4,57.3553]
[1610321215487,2.0975,1270.1,1269.4,57.3553]
[1610321215687,51.8501,1270.6,1269.4,59.7256]
[1610321216089,4.00959,1269.6,1269.5,4.00959]
[1610321216388,4.00959,1269.6,1269.5,5.21661573]
[1610321217288,45.9261,1270.6,1269.5,5.21661573]
[1610321218090,4.00959,1270.0,1269.9,4.00959]
[1610321218491,4.00959,1270.0,1269.5,58.87242573]
[1610321219291,4.00959,1270.0,1269.6,1.20689799]
[1610321220191,4.00959,1269.7,1269.6,5.21648799]
[1610321222193,4.00959,1269.9,1269.6,5.21648799]
[1610321223696,4.00959,1269.9,1269.7,1.20691139]
[1610321225296,34.00959,1269.9,1269.6,1.20746465]
[1610321226098,4.00959,1269.7,1269.6,1.20746465]
[1610321226498,4.00959,1269.7,1269.5,57.6654]
[1610321228699,34.00959,1269.7,1269.5,57.6654]
[1610321228900,4.00959,1269.7,1269.5,57.6654]
[1610321229100,35.56819,1269.7,1269.5,57.6654]
[1610321229699,35.56819,1269.7,1267.1,0.24172425]
[1610321229900,35.56819,1269.7,1267.0,0.24174362]
[1610321230200,4.00959,1268.0,1267.8,4.00959]
[1610321230400,2.0075,1269.3,1267.8,4.00959]
[1610321230600,2.0075,1269.3,1267.8,6.39419]
[1610321231000,32.0075,1269.3,1267.8,2.3846]
[1610321231600,32.0075,1269.3,1267.1,1.20783895]
[1610321231601,32.0075,1269.3,1267.5,2.0922]
[1610321232201,4.00959,1267.6,1267.5,2.0922]
[1610321233802,4.00959,1267.6,1267.5,3.30080808]
[1610321234404,2.2971,1268.5,1267.5,3.30080808]
[1610321235004,5.4654,1269.2,1267.5,3.30080808]
[1610321235204,5.4654,1269.2,1267.6,1.20847461]
[1610321235904,35.4654,1269.2,1267.6,1.20847461]
[1610321236104,5.4654,1269.2,1267.6,1.20847461]
[1610321236304,4.00959,1267.7,1267.6,1.20847461]
[1610321236506,2.2901,1268.9,1267.6,1.20847461]
[1610321237204,2.2901,1268.9,1267.5,2.0922]
[1610321237505,2.2901,1268.9,1267.0,4.00959]
[1610321238304,4.00959,1267.6,1267.0,4.00959]
[1610321239607,4.00959,1267.6,1267.1,1.20869766]
[1610321240008,4.00959,1267.6,1267.1,2.74709766]
[1610321240208,4.00959,1267.6,1267.2,4.00959]
[1610321240407,63.0336,1268.4,1267.2,4.00959]
[1610321241007,63.0336,1268.4,1267.2,5.21819121]
[1610321242209,4.00959,1267.8,1267.5,4.00959]
[1610321242914,4.00959,1267.8,1267.3,1.20858306]
[1610321243210,4.00959,1267.8,1267.1,1.5384]
[1610321243911,4.00959,1267.8,1267.2,1.20869221]
[1610321244310,4.00959,1267.3,1267.2,1.20869221]
[1610321247117,1.5604,1268.3,1267.2,1.20869221]
[1610321247318,5.9538,1268.5,1267.2,1.20869221]
[1610321247516,2.1107,1268.6,1267.2,1.20869221]
[1610321248217,4.00959,1267.8,1267.6,4.00959]
[1610321249817,4.00959,1267.8,1267.7,1.20863145]
[1610321250017,4.00959,1267.8,1267.7,3.25133145]
[1610321251217,65.4226,1268.1,1267.7,3.25133145]
[1610321252318,65.4226,1268.1,1267.9,4.00959]
[1610321253520,65.4226,1268.1,1267.8,1.20853467]
[1610321254221,65.4226,1268.1,1268.0,1.20852344]
[1610321254420,65.4226,1268.1,1268.0,5.21811344]
[1610321254622,65.4226,1268.1,1268.0,7.51261344]
[1610321257824,30.0,1270.4,1268.0,7.51261344]
[1610321258225,32.1093,1270.4,1268.0,7.51261344]
[1610321258426,4.00959,1269.2,1268.9,4.00959]
[1610321259629,4.00959,1269.2,1269.0,1.20774449]
[1610321259829,4.00959,1269.2,1269.0,3.27724449]
[1610321260428,34.00959,1269.2,1269.0,3.27724449]
[1610321260629,4.00959,1269.2,1269.0,3.27724449]
[1610321261029,4.00959,1269.2,1269.0,2.0695]
[1610321261229,4.00959,1269.2,1268.6,2.0932]
[1610321261629,4.00959,1269.2,1268.0,2.2945]
[1610321261829,34.00959,1269.2,1267.7,2.0427]
[1610321262230,34.00959,1269.2,1266.4,0.24187905]
[1610321262432,5.6474,1269.1,1268.1,1.20858409]
[1610321262633,30.0,1269.0,1268.1,1.20858409]
[1610321263633,30.0,1269.0,1266.1,1.20901043]
[1610321264034,30.0,1268.8,1266.1,1.20901043]
[1610321264434,4.00959,1266.9,1266.8,4.00959]
[1610321265033,2.0446,1268.1,1266.8,5.21865081]
[1610321265235,2.0446,1268.1,1266.8,7.55025081]
[1610321265633,7.5561,1269.1,1266.8,7.55025081]
[1610321266033,30.0,1269.0,1266.8,7.55025081]
[1610321266434,4.00959,1267.1,1267.0,4.00959]
[1610321266635,2.1285,1268.8,1267.0,4.00959]
[1610321267336,51.4477,1268.8,1267.0,4.00959]
[1610321268137,51.4477,1268.8,1267.2,1.20887047]
[1610321268338,4.00959,1267.6,1267.2,6.87906047]
[1610321268739,51.4477,1268.8,1267.2,6.87906047]
[1610321269340,51.4477,1268.8,1267.3,1.20866249]
[1610321270442,4.00959,1267.6,1267.5,4.00959]
[1610321270844,51.4477,1268.8,1267.5,4.00959]
[1610321271244,51.4477,1268.8,1267.5,5.55369]
[1610321272045,51.4477,1268.8,1267.6,1.20856466]
[1610321272445,51.4477,1268.8,1267.7,4.00959]
[1610321273445,51.4477,1268.8,1267.8,1.20844129]
[1610321273945,51.4477,1268.8,1267.8,3.21194129]
[1610321274145,81.4477,1268.8,1267.8,3.21194129]
[1610321274445,4.00959,1267.9,1267.8,3.21194129]
[1610321274845,4.00959,1267.9,1267.8,2.0035]
[1610321275745,4.00959,1267.9,1267.2,1.6606]
[1610321276345,4.00959,1267.9,1267.8,1.20907896]
[1610321276546,62.1379,1268.1,1267.8,1.20907896]
[1610321277545,62.1379,1268.1,1267.3,1.20913913]
[1610321278546,4.00959,1267.5,1267.3,5.21872913]
[1610321279745,4.00959,1267.5,1267.3,4.00959]
[1610321280547,4.00959,1267.5,1267.4,1.20885365]
[1610321282450,62.1379,1268.1,1267.4,1.20885365]
[1610321283353,92.1379,1268.1,1267.4,1.20885365]
[1610321284253,62.1379,1268.1,1267.4,1.20885365]
[1610321284452,4.00959,1267.5,1267.4,1.20885365]
[1610321284854,62.1379,1268.1,1267.4,1.20885365]
[1610321285254,62.1379,1268.1,1267.3,1.20902184]
[1610321286053,56.7296,1268.6,1267.3,1.20902184]
[1610321286253,86.7296,1268.6,1267.3,1.20902184]
[1610321286453,4.00959,1267.4,1267.3,1.20902184]
[1610321286955,86.7296,1268.6,1267.3,1.20902184]
[1610321287153,56.7296,1268.6,1267.3,1.20902184]
[1610321288554,4.00959,1267.6,1267.4,4.00959]
[1610321288754,4.00959,1267.6,1267.3,1.20902184]
[1610321290555,4.00959,1267.4,1267.3,1.20902184]
[1610321292259,1.5389,1268.5,1267.3,1.20902184]
[1610321292458,4.00959,1267.4,1267.3,1.20902184]
[1610321292859,1.5389,1268.5,1267.3,1.20902184]
[1610321293059,56.7296,1268.6,1267.3,1.20902184]
[1610321294564,4.00959,1268.0,1267.9,4.00959]
[1610321295164,56.7296,1268.6,1267.9,4.00959]
[1610321295364,59.0834,1269.2,1267.9,4.00959]
[1610321295565,59.0834,1269.2,1267.9,7.16320847]
[1610321296465,4.00959,1268.4,1268.3,4.00959]
[1610321297768,59.0834,1269.2,1268.3,4.00959]
[1610321297969,59.0834,1269.2,1268.3,5.89769]
[1610321298367,59.0834,1269.2,1268.3,7.10603116]
[1610321298569,59.0834,1269.2,1269.1,4.00959]
[1610321298768,59.0834,1269.2,1269.1,6.37319]
[1610321301275,59.0834,1269.2,1269.1,7.58095981]
[1610321304679,4.00959,1269.6,1269.1,7.58095981]
[1610321305479,4.00959,1269.6,1269.1,6.37319]
[1610321305878,4.00959,1269.6,1269.1,2.3636]
[1610321306280,4.00959,1269.6,1269.1,1.7629]
[1610321306679,4.00959,1269.2,1269.1,1.7629]
[1610321308079,4.00959,1269.2,1269.1,1.74100654]
[1610321310579,4.00959,1269.2,1268.8,59.9586]
[1610321311279,34.00959,1269.2,1268.8,59.9586]
[1610321311481,4.00959,1269.2,1268.8,59.9586]
[1610321312579,4.00959,1268.9,1268.8,59.9586]
[1610321313979,4.00959,1268.9,1268.8,61.1667993]
[1610321314179,4.00959,1268.9,1268.8,1.2081993]
[1610321314380,1.7639,1269.7,1268.8,1.2081993]
[1610321314579,4.00959,1269.1,1268.8,1.2081993]
[1610321315581,5.8405,1269.9,1268.8,1.2081993]
[1610321316782,4.00959,1269.2,1268.8,1.2081993]
[1610321318684,4.00959,1268.9,1268.8,1.2081993]
[1610321320886,4.00959,1268.9,1268.4,1.20843273]
[1610321322689,4.00959,1268.5,1268.4,1.20843273]
[1610321322891,30.0,1269.1,1268.4,1.20843273]
[1610321323691,30.0,1269.0,1268.4,1.20843273]
[1610321324593,4.00959,1268.5,1268.4,1.20843273]
[1610321327799,4.00959,1268.5,1268.1,1.20860588]
[1610321328299,30.0,1268.4,1268.1,1.20860588]
[1610321328701,4.00959,1268.2,1268.1,1.20860588]
[1610321328898,34.00959,1268.2,1268.1,1.20860588]
[1610321330799,34.00959,1268.2,1268.0,54.5706]
[1610321333003,34.00959,1268.2,1266.2,4.00959]
[1610321333605,5.4932,1268.1,1266.2,4.00959]
[1610321333808,30.0,1268.0,1266.2,4.00959]
[1610321334706,4.00959,1267.5,1266.8,44.8516]
[1610321336507,4.00959,1267.5,1266.9,1.20917826]
[1610321336709,4.00959,1267.1,1266.9,1.20917826]
[1610321336910,4.00959,1267.1,1266.9,3.60317826]
[1610321337913,4.00959,1267.1,1267.0,1.2091945]
[1610321343620,4.00959,1267.1,1266.7,1.20947728]
[1610321344822,4.00959,1266.8,1266.7,1.20947728]
[1610321346825,4.00959,1267.2,1266.7,1.20947728]
[1610321347025,2.2551,1267.6,1266.7,1.20947728]
[1610321347225,61.2536,1268.0,1266.7,1.20947728]
[1610321348728,4.00959,1267.3,1267.0,4.00959]
[1610321349229,61.2536,1268.0,1267.0,4.00959]
[1610321349430,61.2536,1268.0,1267.0,5.66359]
[1610321350730,61.2536,1268.0,1267.3,4.00959]
[1610321350731,4.00959,1267.5,1267.3,4.00959]
[1610321351131,4.00959,1267.5,1267.1,1.20885586]
[1610321352734,4.00959,1267.2,1267.1,5.21844586]
[1610321352933,4.00959,1267.2,1267.1,1.20885586]
[1610321353634,31.9365,1268.5,1267.1,1.20885586]
[1610321354736,4.00959,1267.7,1267.1,5.21844586]
[1610321356335,4.00959,1267.7,1267.2,1.20911398]
[1610321356736,4.00959,1267.3,1267.2,1.20911398]
[1610321357738,4.00959,1267.3,1267.1,1.20934347]
[1610321360441,4.00959,1267.3,1267.0,1.20944957]
[1610321360842,4.00959,1267.1,1267.0,1.20944957]
[1610321363140,4.00959,1267.1,1266.8,4.00959]
[1610321364446,48.2096,1268.0,1266.8,4.00959]
[1610321364648,2.1063,1268.2,1266.9,3.31053628]
[1610321364945,4.00959,1267.6,1267.1,4.00959]
[1610321365147,1.9365,1268.5,1267.1,4.00959]
[1610321365345,5.9146,1268.7,1267.1,4.00959]
[1610321365748,2.1094,1268.8,1267.1,4.00959]
[1610321365946,30.0,1269.7,1267.2,1.20899242]
[1610321366148,5.8919,1269.6,1267.2,3.32489242]
[1610321366348,30.0,1269.5,1267.2,3.32489242]
[1610321366747,4.00959,1268.5,1268.3,4.00959]
[1610321367747,4.00959,1268.5,1267.3,1.20848714]
[1610321368749,4.00959,1268.5,1268.0,4.00959]
[1610321369147,4.00959,1268.5,1268.0,5.59049]
[1610321369649,4.00959,1268.5,1268.0,1.5809]
[1610321370252,4.00959,1268.5,1268.1,1.20860985]
[1610321370851,4.00959,1268.2,1268.1,1.20860985]
[1610321376064,4.00959,1268.2,1267.8,1.20919501]
[1610321376966,4.00959,1268.0,1267.8,1.20919501]
[1610321377966,6.0155,1269.8,1267.8,1.20919501]
[1610321378166,6.0155,1269.8,1267.8,2.98319501]
[1610321378967,4.00959,1269.0,1268.3,4.00959]
[1610321380168,4.00959,1269.0,1268.4,1.20847143]
[1610321380368,4.00959,1269.0,1268.4,3.34067143]
[1610321380968,4.00959,1268.5,1268.4,3.34067143]
[1610321381771,4.00959,1268.5,1268.4,2.1322]
[1610321382971,4.00959,1268.5,1268.4,3.34070868]
[1610321384977,2.1473,1269.7,1268.4,3.34070868]
[1610321385174,6.0155,1269.8,1268.4,3.34070868]
[1610321385676,6.0155,1269.8,1268.5,1.20844038]
[1610321385976,30.0,1269.7,1268.5,1.20844038]
[1610321386575,30.0,1269.7,1268.4,2.1322]
[1610321387076,30.0,1269.7,1268.5,4.00959]
[1610321387276,30.0,1269.9,1268.6,3.25217118]
[1610321388078,8.0747,1270.0,1268.6,3.25217118]
[1610321388478,8.0747,1270.0,1268.7,1.20826345]
[1610321389078,4.00959,1269.1,1268.8,4.00959]
[1610321390181,4.00959,1269.1,1268.9,1.20811275]
[1610321390383,4.00959,1269.1,1268.9,3.17351275]
[1610321391687,4.00959,1269.1,1269.0,1.20814981]
[1610321393186,4.00959,1269.1,1268.9,1.9654]
[1610321395391,4.00959,1269.1,1268.6,54.558]
[1610321397093,4.00959,1269.1,1268.7,4.00959]
[1610321397295,46.0936,1269.8,1268.7,4.00959]
[1610321397492,46.0936,1269.8,1268.7,5.21772569]
[1610321398693,2.373,1270.3,1268.8,46.89537144]
[1610321398893,5.5981,1270.4,1268.8,46.89537144]
[1610321399095,4.00959,1269.2,1268.9,4.00959]
[1610321400295,4.00959,1269.2,1269.0,1.20799826]
[1610321400496,4.00959,1269.2,1269.0,3.33049826]
[1610321401797,4.00959,1269.2,1269.1,1.20802734]
[1610321402999,4.00959,1269.2,1269.1,5.21761734]
[1610321403799,4.00959,1269.2,1269.1,1.20802734]
[1610321405703,4.00959,1269.2,1268.9,1.20848551]
[1610321406304,30.0,1269.1,1268.9,1.20848551]
[1610321406704,4.00959,1269.2,1268.9,1.20848551]
[1610321406705,34.00959,1269.2,1268.9,1.20848551]
[1610321407104,5.92249,1269.0,1268.8,45.6873]
[1610321408202,5.92249,1269.0,1267.3,4.00959]
[1610321409003,4.00959,1267.4,1267.3,4.00959]
[1610321410104,1.5714,1268.6,1267.3,4.00959]
[1610321410503,1.9129,1269.0,1267.3,4.00959]
[1610321411004,4.00959,1268.1,1267.9,4.00959]
[1610321411807,4.00959,1268.1,1267.2,2.1159]
[1610321412005,4.00959,1268.1,1266.2,10.216]
[1610321412807,4.00959,1268.1,1266.3,1.20895001]
[1610321413008,2.4807,1269.0,1267.5,4.00959]
[1610321413207,2.4807,1269.0,1267.5,5.81339]
[1610321414209,7.4068,1269.3,1267.5,5.81339]
[1610321414409,7.4068,1269.3,1267.6,1.2087649]
[1610321414812,7.4068,1269.3,1267.5,5.81339]
[1610321415014,30.0,1269.2,1267.5,5.81339]
[1610321415215,4.00959,1268.1,1267.8,4.00959]
[1610321415413,4.00959,1268.1,1267.5,1.8038]
[1610321415814,4.00959,1268.1,1267.6,1.20884918]
[1610321417116,4.00959,1267.7,1267.6,5.21843918]
[1610321417515,4.00959,1267.7,1267.6,11.88253918]
[1610321417717,1.9975,1268.9,1267.6,5.21843918]
[1610321418517,1.9975,1268.9,1267.7,1.20884678]
[1610321419118,4.00959,1267.8,1267.7,1.20884678]
[1610321421321,1.9975,1268.9,1267.7,1.20884678]
[1610321421722,1.9975,1268.9,1267.6,1.20872628]
[1610321422123,7.4068,1269.3,1267.6,1.20872628]
[1610321423123,7.4068,1269.3,1268.2,4.00959]
[1610321423524,7.4068,1269.3,1268.2,5.63299]
[1610321424324,7.4068,1269.3,1268.3,1.20851067]
[1610321425226,7.4068,1269.3,1268.4,4.00959]
[1610321426426,37.4068,1269.3,1268.3,1.20851067]
[1610321427127,4.00959,1268.4,1268.3,1.20851067]
[1610321432629,4.00959,1268.4,1267.6,1.2089149]
[1610321433229,4.00959,1267.7,1267.6,1.2089149]
[1610321444343,5.932,1268.6,1267.6,1.2089149]
[1610321445245,4.00959,1267.9,1267.6,5.2185049]
[1610321446047,4.00959,1267.9,1267.7,1.20882738]
[1610321446447,2.5098,1268.7,1267.7,1.20882738]
[1610321446747,2.0457,1269.0,1267.7,1.20882738]
[1610321447347,4.00959,1268.5,1268.2,4.00959]
[1610321448550,4.00959,1268.5,1268.3,1.20855523]
[1610321450152,4.00959,1268.5,1268.1,1.20853221]
[1610321451252,4.00959,1268.3,1268.2,4.00959]
[1610321451451,4.00959,1268.3,1268.1,1.20853221]
[1610321451852,2.2578,1269.0,1268.1,1.20853221]
[1610321452853,30.0,1269.0,1268.1,1.20853221]
[1610321453255,4.00959,1268.2,1268.1,1.20853221]
[1610321461363,2.4323,1269.0,1268.1,5.21812221]
[1610321461563,52.5378,1269.1,1268.1,5.21812221]
[1610321463163,52.5378,1269.1,1268.2,1.20811092]
[1610321463363,52.5378,1269.1,1269.0,6.19699]
[1610321464562,30.0,1270.4,1269.0,7.40492248]
[1610321465264,30.0,1270.4,1269.4,4.00959]
[1610321465563,30.0,1270.4,1269.4,5.52439]
[1610321465964,5.67617621,1270.3,1269.4,5.52439]
[1610321467266,4.00959,1269.6,1269.5,1.20772662]
[1610321470366,4.00959,1269.6,1269.4,5.52439]
[1610321472270,1.9302,1270.4,1269.4,5.52439]
[1610321472470,30.0,1272.0,1269.4,5.52439]
[1610321473270,41.039,1272.1,1270.1,4.00959]
[1610321473469,11.039,1272.1,1270.1,4.00959]
[1610321473671,11.039,1272.1,1270.1,6.00589]
[1610321474069,5.5164,1272.1,1270.1,6.00589]
[1610321474669,3.405,1272.9,1270.1,6.00589]
[1610321474868,5.4727,1272.8,1270.1,6.00589]
[1610321475075,7.4805,1272.8,1270.1,6.00589]
[1610321475271,7.4805,1272.8,1271.1,4.00959]
[1610321475670,7.4805,1272.8,1271.1,6.11279]
[1610321476272,5.67221577,1272.7,1271.1,6.11279]
[1610321477371,5.67221577,1272.7,1271.9,4.00959]